[Event "Najdorf Memorial-B 2022"]
[Site "Warsaw"]
[Date "2022.07.12"]
[Round "4.17"]
[White "Mazur, Wojciech"]
[Black "Adamowicz, Michal"]
[Result "0-1"]
[ECO "E90"]
[WhiteElo "1750"]
[BlackElo "1408"]
[Annotator "NA"]
[PlyCount "98"]
[EventDate "2022.07.09"]
[EventType "swiss"]
[EventCountry "POL"]
[SourceTitle "playchess.com"]
[Source "ChessBase"]
[SourceQuality "1"]
[TimeControl "40/5400+30:1800+30"]

1. d4 {[%emt 0:00:03]} Nf6 {[%emt 0:00:03]} 2. c4 {[%emt 0:00:04]} g6 {[%emt 0:00:23]} 3. Nc3 {[%emt 0:00:15]} Bg7 {[%emt 0:00:06]} 4. e4 {[%emt 0:00:15]} d6 {[%emt 0:00:06]} 5. Nf3 {[%emt 0:00:09]} Bg4 {[%emt 0:01:25]} 6. Be2 {[%emt 0:00:28]} Nfd7 {[%emt 0:00:18]} 7. Ng5 {[%emt 0:12:42]} Bxe2 {[%emt 0:00:44]} 8. Nxe2 {[%emt 0:01:01]} e5 {[%emt 0:16:07]} 9. d5 {[%emt 0:02:04]} h6 {[%emt 0:00:09]} 10. Nh3 {[%emt 0:10:46]} f5 {[%emt 0:03:39]} 11. exf5 {[%emt 0:10:48]} gxf5 {[%emt 0:00:47]} 12. Ng3 {[%emt 0:08:41]} O-O {[%emt 0:01:45]} 13. Nh5 {[%emt 0:04:07]} Qh4 {[%emt 0:01:22]} 14. Nxg7 {[%emt 0:03:29]} Kxg7 {[%emt 0:00:11]} 15. b3 {[%emt 0:01:47]} Nc5 {[%emt 0:10:30]} 16. O-O {[%emt 0:02:24]} Nbd7 {[%emt 0:01:33]} 17. b4 {[%emt 0:03:30]} Ne4 {[%emt 0:01:13]} 18. f4 {[%emt 0:03:59]} Rf6 {[%emt 0:06:29]} 19. Nf2 {[%emt 0:02:45]} Rg6 {[%emt 0:10:45]} 20. Nxe4 {[%emt 0:01:55]} fxe4 {[%emt 0:00:10]} 21. Qe1 {[%emt 0:02:42]} Qxe1 {[%emt 0:03:32]} 22. Rxe1 {[%emt 0:00:02]} Nf6 {[%emt 0:05:19]} 23. fxe5 {[%emt 0:02:10]} dxe5 {[%emt 0:00:06]} 24. Bb2 {[%emt 0:00:38]} Re8 {[%emt 0:00:28]} 25. Re3 {[%emt 0:03:30]} a6 {[%emt 0:05:09]} 26. a4 {[%emt 0:01:44]} h5 {[%emt 0:03:33]} 27. Rf1 {[%emt 0:02:20]} Rg5 {[%emt 0:01:03]} 28. Bc3 {[%emt 0:03:37]} Kg6 {[%emt 0:01:44]} 29. b5 {[%emt 0:02:20]} axb5 {[%emt 0:04:29]} 30. axb5 {[%emt 0:00:07]} Ra8 {[%emt 0:00:10]} 31. Ra1 {[%emt 0:01:40]} Rxa1+ {[%emt 0:00:10]} 32. Bxa1 {[%emt 0:00:01]} Kf5 {[%emt 0:01:12]} 33. Re2 {[%emt 0:02:04]} h4 {[%emt 0:02:57]} 34. Rf2+ {[%emt 0:01:01]} Kg6 {[%emt 0:00:07]} 35. Ra2 {[%emt 0:00:33]} h3 {[%emt 0:00:47]} 36. g3 {[%emt 0:01:52]} e3 {[%emt 0:05:41]} 37. Kf1 {[%emt 0:03:48]} Rf5+ {[%emt 0:04:06]} 38. Ke1 {[%emt 0:00:11]} Ng4 {[%emt 0:01:01]} 39. c5 {[%emt 0:01:01]} e4 {[%emt 0:04:47]} 40. c6 {[%emt 0:00:00]} bxc6 {[%emt 0:00:00]} 41. b6 {[%emt 0:03:54]} cxb6 {[%emt 0:05:11]} 42. dxc6 {[%emt 0:00:03]} Rc5 {[%emt 0:02:10]} 43. Bd4 {[%emt 0:00:39]} Rxc6 {[%emt 0:00:46]} 44. Ke2 {[%emt 0:01:23]} Kf5 {[%emt 0:02:58]} 45. Bxe3 {[%emt 0:03:16]} Nxh2 {[%emt 0:00:45]} 46. Bf4 {[%emt 0:04:41]} Ng4 {[%emt 0:01:50]} 47. Kf1 {[%emt 0:00:28]} e3 {[%emt 0:02:20]} 48. Ke2 {[%emt 0:00:34]} Rc1 {[%emt 0:00:26]} 49. Bxe3 {[%emt 0:00:19]} h2 {[%emt 0:00:32]} 0-1

[Event "Najdorf Memorial-B 2022"]
[Site "Warsaw"]
[Date "2022.07.13"]
[Round "5.1"]
[White "Bubien, Antoni"]
[Black "Yasmo, Daniil"]
[Result "*"]
[ECO "B22"]
[WhiteElo "1472"]
[BlackElo "1680"]
[Annotator "NA"]
[PlyCount "62"]
[EventDate "2022.07.09"]
[EventType "swiss"]
[EventCountry "POL"]
[SourceTitle "playchess.com"]
[Source "ChessBase"]
[SourceQuality "1"]
[TimeControl "40/5400+30:1800+30"]

1. e4 {[%emt 0:00:02]} c5 {[%emt 0:00:11]} 2. c3 {[%emt 0:00:05]} d5 {[%emt 0:00:19]} 3. exd5 {[%emt 0:00:05]} Qxd5 {[%emt 0:00:02]} 4. d4 {[%emt 0:00:10]} Nc6 {[%emt 0:00:12]} 5. Nf3 {[%emt 0:00:08]} Bg4 {[%emt 0:00:05]} 6. Be2 {[%emt 0:01:57]} e6 {[%emt 0:00:21]} 7. Be3 {[%emt 0:00:08]} cxd4 {[%emt 0:00:10]} 8. cxd4 {[%emt 0:00:07]} Nf6 {[%emt 0:00:12]} 9. Nc3 {[%emt 0:00:07]} Qd6 {[%emt 0:00:15]} 10. O-O {[%emt 0:00:30]} Be7 {[%emt 0:00:40]} 11. h3 {[%emt 0:02:07]} Bh5 {[%emt 0:01:11]} 12. Qb3 {[%emt 0:01:12]} O-O {[%emt 0:00:29]} 13. Rad1 {[%emt 0:01:04]} Rfd8 {[%emt 0:01:04]} 14. Rd2 {[%emt 0:03:24]} a6 {[%emt 0:02:22]} 15. Rfd1 {[%emt 0:01:43]} Nb4 {[%emt 0:01:43]} 16. Ne5 {[%emt 0:05:52]} Bxe2 {[%emt 0:00:11]} 17. Nxe2 {[%emt 0:00:07]} Ne4 {[%emt 0:00:59]} 18. Bf4 {[%emt 0:07:38]} Nxd2 {[%emt 0:00:52]} 19. Rxd2 {[%emt 0:01:05]} Qd5 {[%emt 0:05:06]} 20. Qg3 {[%emt 0:00:29]} Qb5 {[%emt 0:04:19]} 21. Bh6 {[%emt 0:06:45]} Bf6 {[%emt 0:02:47]} 22. Nc3 {[%emt 0:02:06]} Qe8 {[%emt 0:01:28]} 23. Ne4 Qe7 {[%emt 0:00:48]} 24. Nxf6+ {[%emt 0:14:53]} Qxf6 {[%emt 0:00:01]} 25. Bg5 {[%emt 0:00:15]} Qf5 {[%emt 0:00:17]} 26. Bxd8 {[%emt 0:01:03]} Rxd8 {[%emt 0:00:02]} 27. Qb3 {[%emt 0:04:30]} Nd5 {[%emt 0:02:53]} 28. Qxb7 {[%emt 0:00:26]} Nf4 {[%emt 0:08:00]} 29. Nc6 {[%emt 0:07:06]} Qb1+ {[%emt 0:12:15]} 30. Kh2 {[%emt 0:00:09]} Rf8 {[%emt 0:00:18]} 31. Ne7+ {[%emt 0:05:24]} Kh8 {[%emt 0:01:54]} *

[Event "Najdorf Memorial-B 2022"]
[Site "Warsaw"]
[Date "2022.07.13"]
[Round "5.2"]
[White "Dysko, Michal"]
[Black "Piddubna, Bozhena"]
[Result "1-0"]
[ECO "C97"]
[WhiteElo "1376"]
[BlackElo "1534"]
[Annotator "NA"]
[PlyCount "73"]
[EventDate "2022.07.09"]
[EventType "swiss"]
[EventCountry "POL"]
[SourceTitle "playchess.com"]
[Source "ChessBase"]
[SourceQuality "1"]
[TimeControl "40/5400+30:1800+30"]

1. e4 {[%emt 0:00:02]} e5 {[%emt 0:01:47]} 2. Nf3 {[%emt 0:00:16]} Nc6 {[%emt 0:00:45]} 3. Bb5 {[%emt 0:00:20]} a6 {[%emt 0:00:14]} 4. Ba4 {[%emt 0:00:19]} Nf6 {[%emt 0:00:17]} 5. O-O {[%emt 0:00:21]} Be7 {[%emt 0:00:52]} 6. Re1 {[%emt 0:00:23]} b5 {[%emt 0:00:47]} 7. Bb3 {[%emt 0:00:13]} d6 {[%emt 0:00:08]} 8. c3 {[%emt 0:00:31]} Na5 {[%emt 0:00:25]} 9. Bc2 {[%emt 0:00:19]} c5 {[%emt 0:00:23]} 10. d4 {[%emt 0:00:35]} Qc7 {[%emt 0:00:09]} 11. h3 {[%emt 0:00:17]} O-O {[%emt 0:00:57]} 12. d5 {[%emt 0:03:22]} Bd7 {[%emt 0:02:05]} 13. b3 {[%emt 0:01:04]} Nb7 {[%emt 0:04:37]} 14. Nbd2 {[%emt 0:03:43]} Ne8 {[%emt 0:07:19]} 15. Nf1 {[%emt 0:01:15]} a5 {[%emt 0:03:37]} 16. Ng3 {[%emt 0:06:23]} g6 {[%emt 0:02:11]} 17. Qe2 {[%emt 0:11:24]} Ng7 {[%emt 0:01:44]} 18. Bd3 {[%emt 0:02:20]} b4 {[%emt 0:01:37]} 19. c4 {[%emt 0:01:46]} a4 {[%emt 0:01:11]} 20. bxa4 {[%emt 0:04:43]} Rxa4 {[%emt 0:00:36]} 21. Bc2 {[%emt 0:03:09]} Ra7 {[%emt 0:00:47]} 22. Nd2 {[%emt 0:07:14]} f5 {[%emt 0:02:54]} 23. exf5 {[%emt 0:01:35]} gxf5 {[%emt 0:01:29]} 24. Nh5 {[%emt 0:04:34]} Be8 {[%emt 0:01:50]} 25. Nxg7 {[%emt 0:04:13]} Kxg7 {[%emt 0:00:02]} 26. f4 {[%emt 0:04:07]} e4 {[%emt 0:01:09]} 27. Nxe4 {[%emt 0:03:20]} fxe4 {[%emt 0:00:13]} 28. Qxe4 {[%emt 0:00:21]} Bg6 {[%emt 0:00:04]} 29. Qxe7+ {[%emt 0:01:51]} Qxe7 {[%emt 0:00:07]} 30. Rxe7+ {[%emt 0:00:05]} Kf6 {[%emt 0:00:03]} 31. Re6+ {[%emt 0:02:31]} Kf7 {[%emt 0:00:32]} 32. f5 {[%emt 0:04:32]} Bxf5 {[%emt 0:00:11]} 33. Bxf5 {[%emt 0:00:16]} Rfa8 {[%emt 0:00:03]} 34. Bg5 {[%emt 0:10:29]} b3 {[%emt 0:00:30]} 35. Re7+ {[%emt 0:02:57]} Kf8 {[%emt 0:00:07]} 36. Bxh7 {[%emt 0:00:42]} b2 {[%emt 0:00:14]} 37. Rf1# {[%emt 0:00:09]} 1-0

[Event "Najdorf Memorial-B 2022"]
[Site "Warsaw"]
[Date "2022.07.13"]
[Round "5.3"]
[White "Slusarczyk, Anna"]
[Black "Napieralski, Lucjan"]
[Result "1-0"]
[ECO "D05"]
[WhiteElo "1637"]
[BlackElo "1414"]
[Annotator "NA"]
[PlyCount "41"]
[EventDate "2022.07.09"]
[EventType "swiss"]
[EventCountry "POL"]
[SourceTitle "playchess.com"]
[Source "ChessBase"]
[SourceQuality "1"]
[TimeControl "40/5400+30:1800+30"]

1. d4 {[%emt 0:00:01]} e6 {[%emt 0:00:05]} 2. Nf3 {[%emt 0:00:03]} Nf6 {[%emt 0:00:08]} 3. b3 {[%emt 0:00:03]} d5 {[%emt 0:00:04]} 4. e3 {[%emt 0:00:03]} c5 {[%emt 0:00:06]} 5. Bd3 {[%emt 0:00:09]} Nc6 {[%emt 0:00:03]} 6. Bb2 {[%emt 0:00:05]} b6 {[%emt 0:00:03]} 7. a3 {[%emt 0:00:14]} Bd6 {[%emt 0:00:09]} 8. Ne5 {[%emt 0:04:39]} Qc7 {[%emt 0:04:39]} 9. f4 {[%emt 0:00:25]} O-O {[%emt 0:01:42]} 10. O-O {[%emt 0:00:12]} a5 {[%emt 0:00:45]} 11. Nd2 {[%emt 0:00:54]} Ba6 {[%emt 0:00:43]} 12. c4 {[%emt 0:05:03]} a4 {[%emt 0:04:42]} 13. Nxc6 {[%emt 0:00:52]} Qxc6 {[%emt 0:00:20]} 14. dxc5 {[%emt 0:00:03]} Bxc5 {[%emt 0:13:27]} 15. Bxf6 {[%emt 0:00:11]} Bxe3+ {[%emt 0:04:40]} 16. Kh1 {[%emt 0:00:05]} Bxd2 {[%emt 0:02:04]} 17. Bxh7+ {[%emt 0:00:24]} Kxh7 {[%emt 0:02:54]} 18. Qh5+ {[%emt 0:00:04]} Kg8 {[%emt 0:00:15]} 19. Qg5 {[%emt 0:00:02]} g6 {[%emt 0:01:01]} 20. Qh6 {[%emt 0:00:07]} Bb7 {[%emt 0:00:03]} 21. Qg7# {[%emt 0:00:05]} 1-0

[Event "Najdorf Memorial-B 2022"]
[Site "Warsaw"]
[Date "2022.07.13"]
[Round "5.4"]
[White "Trochimczuk, Szymon"]
[Black "Chekhani, Anna"]
[Result "1-0"]
[ECO "D37"]
[WhiteElo "1480"]
[BlackElo "1575"]
[Annotator "NA"]
[PlyCount "109"]
[EventDate "2022.07.09"]
[EventType "swiss"]
[EventCountry "POL"]
[SourceTitle "playchess.com"]
[Source "ChessBase"]
[SourceQuality "1"]
[TimeControl "40/5400+30:1800+30"]

1. d4 {[%emt 0:00:01]} Nf6 {[%emt 0:00:13]} 2. c4 {[%emt 0:00:04]} e6 {[%emt 0:00:06]} 3. Nf3 {[%emt 0:00:06]} d5 {[%emt 0:06:08]} 4. Nc3 {[%emt 0:00:07]} Be7 {[%emt 0:01:16]} 5. Bf4 {[%emt 0:00:05]} O-O {[%emt 0:10:38]} 6. e3 {[%emt 0:00:06]} a6 {[%emt 0:11:51]} 7. c5 {[%emt 0:00:44]} Nh5 {[%emt 0:05:37]} 8. Bd3 {[%emt 0:03:40]} Nxf4 {[%emt 0:06:32]} 9. exf4 {[%emt 0:00:08]} Nc6 {[%emt 0:02:56]} 10. a3 {[%emt 0:06:38]} Bf6 {[%emt 0:03:52]} 11. O-O {[%emt 0:05:41]} g6 {[%emt 0:02:34]} 12. Bc2 {[%emt 0:02:06]} Bg7 {[%emt 0:03:26]} 13. Ba4 {[%emt 0:05:46]} Ne7 {[%emt 0:04:56]} 14. Re1 {[%emt 0:07:19]} Bd7 {[%emt 0:03:44]} 15. Bc2 {[%emt 0:04:27]} Nc6 {[%emt 0:06:46]} 16. b4 {[%emt 0:04:14]} Qf6 {[%emt 0:02:47]} 17. Ne2 {[%emt 0:07:43]} b6 {[%emt 0:04:41]} 18. Ne5 {[%emt 0:01:52]} Be8 {[%emt 0:05:08]} 19. Qd2 {[%emt 0:04:00]} Qd8 {[%emt 0:11:16]} 20. cxb6 {[%emt 0:03:54]} cxb6 {[%emt 0:00:18]} 21. Rac1 {[%emt 0:01:15]} Nxe5 {[%emt 0:01:43]} 22. dxe5 {[%emt 0:00:40]} Bb5 {[%emt 0:00:12]} 23. Nd4 {[%emt 0:00:26]} Bc4 {[%emt 0:00:14]} 24. Bd3 {[%emt 0:03:35]} b5 {[%emt 0:00:12]} 25. a4 {[%emt 0:01:14]} Qb6 {[%emt 0:00:46]} 26. Qe3 {[%emt 0:02:29]} Rac8 {[%emt 0:01:24]} 27. g4 {[%emt 0:02:30]} Bh6 {[%emt 0:01:03]} 28. g5 {[%emt 0:01:48]} Bg7 {[%emt 0:00:10]} 29. a5 {[%emt 0:01:44]} Qa7 {[%emt 0:00:30]} 30. Bxc4 {[%emt 0:04:35]} dxc4 {[%emt 0:00:52]} 31. Nc2 {[%emt 0:02:52]} Qxe3 {[%emt 0:00:19]} 32. fxe3 {[%emt 0:00:19]} Rfd8 {[%emt 0:00:20]} 33. Red1 {[%emt 0:00:28]} Bf8 {[%emt 0:01:10]} 34. Rd4 {[%emt 0:00:54]} c3 {[%emt 0:02:30]} 35. Rcd1 {[%emt 0:01:09]} Be7 {[%emt 0:00:50]} 36. Rxd8+ {[%emt 0:00:24]} Bxd8 {[%emt 0:00:22]} 37. Kf2 {[%emt 0:01:24]} Be7 {[%emt 0:00:11]} 38. Ke2 {[%emt 0:00:44]} Rc4 {[%emt 0:00:18]} 39. Rd4 {[%emt 0:00:21]} Kf8 {[%emt 0:01:35]} 40. Rxc4 {[%emt 0:00:00]} bxc4 {[%emt 0:00:00]} 41. Kf3 {[%emt 0:02:45]} Ke8 {[%emt 0:01:54]} 42. Ke4 {[%emt 0:00:17]} Kd7 {[%emt 0:00:21]} 43. Kd4 {[%emt 0:00:09]} Kc6 {[%emt 0:00:13]} 44. Kxc4 {[%emt 0:00:13]} Bf8 {[%emt 0:00:19]} 45. Nd4+ {[%emt 0:00:10]} Kc7 {[%emt 0:00:06]} 46. Kxc3 {[%emt 0:00:11]} h6 {[%emt 0:00:14]} 47. h4 {[%emt 0:01:09]} hxg5 {[%emt 0:00:30]} 48. hxg5 {[%emt 0:00:15]} Kb7 {[%emt 0:00:23]} 49. Kc4 {[%emt 0:04:35]} Be7 {[%emt 0:02:27]} 50. Nb3 {[%emt 0:02:46]} Kc6 {[%emt 0:01:39]} 51. Nd2 {[%emt 0:01:43]} Bd8 {[%emt 0:00:40]} 52. Ne4 {[%emt 0:00:29]} Bc7 {[%emt 0:03:04]} 53. Nc5 {[%emt 0:00:35]} Bb8 {[%emt 0:00:48]} 54. Nxa6 {[%emt 0:00:08]} Ba7 {[%emt 0:00:03]} 55. b5+ {[%emt 0:00:32]} 1-0

[Event "Najdorf Memorial-B 2022"]
[Site "Warsaw"]
[Date "2022.07.13"]
[Round "5.5"]
[White "Terkiewicz, Bruno"]
[Black "Tomalak, Stanislaw"]
[Result "1-0"]
[ECO "C97"]
[WhiteElo "1473"]
[BlackElo "1554"]
[Annotator "NA"]
[PlyCount "85"]
[EventDate "2022.07.09"]
[EventType "swiss"]
[EventCountry "POL"]
[SourceTitle "playchess.com"]
[Source "ChessBase"]
[SourceQuality "1"]
[TimeControl "40/5400+30:1800+30"]

1. e4 {[%emt 0:00:32]} e5 {[%emt 0:00:15]} 2. Nf3 {[%emt 0:00:05]} Nc6 {[%emt 0:00:06]} 3. Bb5 {[%emt 0:00:07]} a6 {[%emt 0:00:18]} 4. Ba4 {[%emt 0:00:10]} Nf6 {[%emt 0:00:16]} 5. O-O {[%emt 0:00:05]} b5 {[%emt 0:00:09]} 6. Bb3 {[%emt 0:00:03]} Be7 {[%emt 0:00:19]} 7. Re1 {[%emt 0:00:20]} d6 {[%emt 0:00:20]} 8. c3 {[%emt 0:00:29]} Na5 {[%emt 0:00:10]} 9. Bc2 {[%emt 0:00:06]} c5 {[%emt 0:00:10]} 10. d4 {[%emt 0:00:32]} Qc7 {[%emt 0:00:14]} 11. h3 {[%emt 0:00:56]} O-O {[%emt 0:00:20]} 12. Nbd2 {[%emt 0:00:52]} Bd7 {[%emt 0:00:27]} 13. Nf1 {[%emt 0:03:54]} Rac8 {[%emt 0:01:23]} 14. Ne3 {[%emt 0:00:56]} g6 {[%emt 0:02:04]} 15. a4 {[%emt 0:06:14]} cxd4 {[%emt 0:04:34]} 16. cxd4 {[%emt 0:00:52]} Nc4 {[%emt 0:03:45]} 17. Nxc4 {[%emt 0:00:14]} bxc4 {[%emt 0:00:26]} 18. Bd2 {[%emt 0:04:35]} a5 {[%emt 0:02:41]} 19. Bc3 {[%emt 0:01:23]} exd4 {[%emt 0:03:12]} 20. Nxd4 {[%emt 0:00:13]} Qc5 {[%emt 0:03:07]} 21. Qd2 {[%emt 0:10:40]} Ra8 {[%emt 0:01:42]} 22. Rad1 {[%emt 0:09:35]} Rfd8 {[%emt 0:05:58]} 23. Qh6 {[%emt 0:18:26]} Nh5 {[%emt 0:07:53]} 24. Nf3 {[%emt 0:06:45]} Bc6 {[%emt 0:06:31]} 25. Bd4 {[%emt 0:03:42]} Qb4 {[%emt 0:14:40]} 26. Ng5 {[%emt 0:00:54]} Bxg5 {[%emt 0:00:17]} 27. Qxg5 {[%emt 0:00:02]} f6 {[%emt 0:00:29]} 28. Bxf6 {[%emt 0:06:29]} Nxf6 {[%emt 0:00:19]} 29. Qxf6 {[%emt 0:00:02]} Qc5 {[%emt 0:09:46]} 30. Rd4 {[%emt 0:05:56]} Rd7 {[%emt 0:03:47]} 31. Qe6+ {[%emt 0:01:05]} Kg7 {[%emt 0:01:07]} 32. Qxc4 {[%emt 0:00:17]} Qb6 {[%emt 0:02:26]} 33. Qc3 {[%emt 0:00:19]} Kf8 {[%emt 0:03:02]} 34. Red1 {[%emt 0:00:24]} Rf7 {[%emt 0:01:08]} 35. Bb3 {[%emt 0:00:37]} Rf6 {[%emt 0:01:52]} 36. R1d2 {[%emt 0:02:14]} Ke7 {[%emt 0:05:34]} 37. Rxd6 {[%emt 0:00:54]} Rxd6 {[%emt 0:06:49]} 38. Qg7+ {[%emt 0:00:16]} Kd8 {[%emt 0:01:08]} 39. Rxd6+ {[%emt 0:00:11]} Kc8 {[%emt 0:00:20]} 40. Qf8+ {[%emt 0:00:00]} Kb7 {[%emt 0:00:00]} 41. Qe7+ {[%emt 0:00:41]} Qc7 {[%emt 0:03:03]} 42. Qxc7+ {[%emt 0:00:07]} Kxc7 {[%emt 0:00:13]} 43. Rxc6+ {[%emt 0:00:07]} 1-0

[Event "Najdorf Memorial-B 2022"]
[Site "Warsaw"]
[Date "2022.07.13"]
[Round "5.6"]
[White "Jarmolowski, Tadeusz"]
[Black "Morczynski, Joachim"]
[Result "1/2-1/2"]
[ECO "B22"]
[WhiteElo "1482"]
[BlackElo "1762"]
[Annotator "NA"]
[PlyCount "128"]
[EventDate "2022.07.09"]
[EventType "swiss"]
[EventCountry "POL"]
[SourceTitle "playchess.com"]
[Source "ChessBase"]
[SourceQuality "1"]
[TimeControl "40/5400+30:1800+30"]

1. e4 {[%emt 0:00:11]} c5 {[%emt 0:00:07]} 2. c3 {[%emt 0:00:09]} d5 {[%emt 0:00:09]} 3. exd5 {[%emt 0:00:16]} Qxd5 {[%emt 0:00:08]} 4. Nf3 {[%emt 0:00:19]} Nc6 {[%emt 0:00:19]} 5. Na3 {[%emt 0:00:19]} Bg4 {[%emt 0:03:24]} 6. Bc4 {[%emt 0:00:56]} Qe4+ {[%emt 0:00:54]} 7. Kf1 {[%emt 0:02:41]} O-O-O {[%emt 0:05:16]} 8. d3 {[%emt 0:02:15]} Bxf3 {[%emt 0:09:14]} 9. gxf3 {[%emt 0:00:58]} Qf5 {[%emt 0:00:20]} 10. f4 {[%emt 0:08:14]} e5 {[%emt 0:04:27]} 11. Qf3 {[%emt 0:01:23]} Nf6 {[%emt 0:01:33]} 12. Kg2 {[%emt 0:05:14]} e4 {[%emt 0:03:52]} 13. dxe4 {[%emt 0:01:01]} Nxe4 {[%emt 0:00:16]} 14. Re1 {[%emt 0:02:25]} Qg6+ {[%emt 0:02:41]} 15. Kh1 {[%emt 0:00:27]} f5 {[%emt 0:01:27]} 16. Be3 {[%emt 0:00:37]} Be7 {[%emt 0:01:42]} 17. Nc2 {[%emt 0:01:36]} Bh4 {[%emt 0:02:35]} 18. Re2 {[%emt 0:01:04]} Qf6 {[%emt 0:08:01]} 19. Rb1 {[%emt 0:03:12]} Rd6 {[%emt 0:02:23]} 20. Ne1 {[%emt 0:03:49]} g5 {[%emt 0:08:08]} 21. fxg5 {[%emt 0:02:49]} Bxg5 {[%emt 0:00:36]} 22. Bxg5 {[%emt 0:02:09]} Qxg5 {[%emt 0:00:14]} 23. Nd3 {[%emt 0:02:53]} Na5 {[%emt 0:08:37]} 24. b3 {[%emt 0:03:42]} Nxc4 {[%emt 0:01:48]} 25. bxc4 {[%emt 0:00:13]} Rg8 {[%emt 0:02:24]} 26. Nf4 {[%emt 0:04:29]} Rb6 {[%emt 0:03:42]} 27. Rbe1 {[%emt 0:01:56]} Rh6 {[%emt 0:02:26]} 28. Qg2 {[%emt 0:09:19]} Qd8 {[%emt 0:03:54]} 29. Qf3 {[%emt 0:01:15]} Qh4 {[%emt 0:01:15]} 30. h3 {[%emt 0:01:09]} Rg4 {[%emt 0:02:54]} 31. Ng2 {[%emt 0:01:12]} Qxh3+ {[%emt 0:01:01]} 32. Qxh3 {[%emt 0:00:15]} Rxh3+ {[%emt 0:00:05]} 33. Kg1 {[%emt 0:00:20]} Rxc3 {[%emt 0:00:21]} 34. Kf1 {[%emt 0:00:36]} Rh3 {[%emt 0:03:43]} 35. Kg1 {[%emt 0:01:11]} h5 {[%emt 0:02:26]} 36. Rd1 {[%emt 0:00:30]} Rc3 {[%emt 0:02:14]} 37. Kh2 {[%emt 0:01:45]} Rg8 {[%emt 0:01:06]} 38. Ne3 {[%emt 0:02:11]} Ng5 {[%emt 0:04:33]} 39. Nxf5 {[%emt 0:02:37]} Nf3+ {[%emt 0:00:30]} 40. Kh1 {[%emt 0:00:00]} Rd3 {[%emt 0:00:00]} 41. Ne7+ {[%emt 0:02:06]} Kb8 {[%emt 0:02:16]} 42. Nxg8 {[%emt 0:00:16]} Rxd1+ {[%emt 0:00:09]} 43. Kg2 {[%emt 0:02:37]} Rg1+ 44. Kxf3 Rxg8 {[%emt 0:08:11]} 45. Re5 {[%emt 0:00:47]} Rg4 {[%emt 0:00:13]} 46. Rxc5 {[%emt 0:00:31]} b6 {[%emt 0:00:06]} 47. Rxh5 {[%emt 0:00:40]} Rxc4 {[%emt 0:00:06]} 48. Rh1 {[%emt 0:01:00]} Ra4 {[%emt 0:00:25]} 49. Ra1 {[%emt 0:00:09]} b5 {[%emt 0:01:14]} 50. Rb1 {[%emt 0:00:27]} b4 {[%emt 0:00:47]} 51. Rb2 {[%emt 0:00:21]} a5 {[%emt 0:00:57]} 52. Kg3 {[%emt 0:00:13]} Ra3+ {[%emt 0:00:33]} 53. Kg4 {[%emt 0:00:38]} Kc7 {[%emt 0:00:45]} 54. f4 {[%emt 0:00:14]} Kd6 {[%emt 0:00:36]} 55. Re2 {[%emt 0:00:13]} b3 {[%emt 0:07:05]} 56. axb3 {[%emt 0:00:40]} Rxb3 {[%emt 0:00:04]} 57. f5 {[%emt 0:01:09]} Rb8 {[%emt 0:00:39]} 58. f6 {[%emt 0:00:44]} a4 {[%emt 0:02:16]} 59. Kf5 {[%emt 0:00:27]} a3 {[%emt 0:01:05]} 60. Rd2+ {[%emt 0:00:36]} Kc5 61. f7 {[%emt 0:04:32]} Kb4 {[%emt 0:02:02]} 62. Re2 {[%emt 0:01:31]} Rf8 {[%emt 0:00:21]} 63. Kf6 {[%emt 0:00:09]} Rxf7+ {[%emt 0:00:24]} 64. Kxf7 Kb3 1/2-1/2

[Event "Najdorf Memorial-B 2022"]
[Site "Warsaw"]
[Date "2022.07.13"]
[Round "5.7"]
[White "Poniewierski, Piotr"]
[Black "Prokopiuk, Jakub"]
[Result "0-1"]
[ECO "D02"]
[WhiteElo "1747"]
[BlackElo "1481"]
[Annotator "NA"]
[PlyCount "88"]
[EventDate "2022.07.09"]
[EventType "swiss"]
[EventCountry "POL"]
[SourceTitle "playchess.com"]
[Source "ChessBase"]
[SourceQuality "1"]
[TimeControl "40/5400+30:1800+30"]

1. Nf3 {[%emt 0:00:07]} d5 {[%emt 0:00:13]} 2. d4 {[%emt 0:00:12]} Nf6 {[%emt 0:00:14]} 3. g3 {[%emt 0:00:07]} e6 {[%emt 0:00:08]} 4. Bg2 {[%emt 0:00:37]} Be7 {[%emt 0:00:05]} 5. c4 {[%emt 0:00:34]} O-O {[%emt 0:00:08]} 6. O-O {[%emt 0:00:20]} c6 {[%emt 0:00:05]} 7. Nbd2 {[%emt 0:02:06]} b6 {[%emt 0:02:31]} 8. Qc2 {[%emt 0:00:25]} Na6 {[%emt 0:08:54]} 9. e4 {[%emt 0:02:42]} Bb7 {[%emt 0:03:12]} 10. e5 {[%emt 0:06:26]} Nd7 {[%emt 0:00:15]} 11. cxd5 {[%emt 0:03:01]} cxd5 {[%emt 0:00:29]} 12. a3 {[%emt 0:03:20]} Rc8 {[%emt 0:02:48]} 13. Qa4 {[%emt 0:03:29]} Nab8 {[%emt 0:22:33]} 14. Re1 {[%emt 0:05:22]} Nc6 {[%emt 0:06:47]} 15. Nf1 {[%emt 0:02:22]} Na5 {[%emt 0:04:09]} 16. Ne3 {[%emt 0:04:00]} Qc7 {[%emt 0:03:35]} 17. Bd2 {[%emt 0:10:03]} Nc4 {[%emt 0:04:26]} 18. Rac1 {[%emt 0:09:31]} Bc6 {[%emt 0:00:54]} 19. Qc2 {[%emt 0:01:18]} b5 {[%emt 0:06:05]} 20. Bb4 {[%emt 0:02:10]} Bxb4 {[%emt 0:01:16]} 21. axb4 {[%emt 0:00:11]} Nxe3 {[%emt 0:02:53]} 22. Rxe3 {[%emt 0:01:56]} Nb6 {[%emt 0:04:06]} 23. Rc3 {[%emt 0:02:03]} Qd7 {[%emt 0:01:12]} 24. Rxc6 {[%emt 0:00:31]} Rxc6 25. Qxc6 {[%emt 0:01:45]} Rc8 {[%emt 0:00:23]} 26. Qxc8+ {[%emt 0:00:15]} Nxc8 {[%emt 0:00:07]} 27. Bf1 {[%emt 0:02:37]} Nb6 {[%emt 0:02:54]} 28. Ne1 {[%emt 0:01:09]} g6 {[%emt 0:03:24]} 29. Nd3 {[%emt 0:03:19]} Nc8 {[%emt 0:10:17]} 30. Nc5 {[%emt 0:01:20]} Qc6 {[%emt 0:00:50]} 31. Ra1 {[%emt 0:01:20]} Qb6 {[%emt 0:01:42]} 32. Ra5 {[%emt 0:01:32]} Qd8 {[%emt 0:01:56]} 33. Bxb5 {[%emt 0:01:45]} Qg5 {[%emt 0:00:09]} 34. Nb3 {[%emt 0:10:26]} Qg4 {[%emt 0:00:56]} 35. Ra1 {[%emt 0:00:22]} Qf3 {[%emt 0:00:43]} 36. Nd2 {[%emt 0:01:02]} Qg4 {[%emt 0:00:54]} 37. Nb3 {[%emt 0:03:32]} Qe4 {[%emt 0:00:49]} 38. Rc1 {[%emt 0:03:58]} Ne7 {[%emt 0:00:37]} 39. Rc7 {[%emt 0:06:13]} Qe1+ {[%emt 0:01:19]} 40. Bf1 {[%emt 0:00:00]} Qxb4 {[%emt 0:00:00]} 41. Rc3 {[%emt 0:05:38]} a5 {[%emt 0:02:50]} 42. Rd3 {[%emt 0:02:14]} Nc6 {[%emt 0:01:17]} 43. Be2 {[%emt 0:00:53]} a4 {[%emt 0:00:39]} 44. Nc5 {[%emt 0:00:17]} Qxb2 {[%emt 0:01:00]} 0-1